fUST/lending_fUST_20251012
["ID","MTS","AMOUNT","RATE_DAILY","PERIOD"]
[390931034,1760223079896,-6747.80869655,0.00022686,2]
[390931035,1760223079905,-8766.29,0.00022686,2]
[390931036,1760223079914,-1669.92049088,0.00022686,2]
[390931037,1760223089464,-500.0,0.00022683,2]
[390931038,1760223089551,-300.0,0.00022683,2]
[390931039,1760223089632,-354.78986015,0.00022683,2]
[390931040,1760223089723,-187.96111306,0.00022683,2]
[390931041,1760223089805,-211.43464896,0.00022683,2]
[390931042,1760223089884,-2115.90875566,0.00022684,2]
[390931043,1760223090127,-2659.82124434,0.00022684,2]
[390931044,1760223090463,-4775.73,0.00022684,2]
[390931045,1760223090681,-4775.73,0.00022684,2]
[390931046,1760223090922,-4775.73,0.00022684,2]
[390931047,1760223091171,-4775.73,0.00022684,2]
[390931048,1760223091420,-4775.73,0.00022684,2]
[390931049,1760223091797,-816.41566308,0.00022684,2]
[390931050,1760223091881,-3959.31433692,0.00022684,2]
[390931051,1760223092035,-4775.73,0.00022684,2]
[390931052,1760223092260,-2529.93132616,0.00022684,2]
[390931053,1760223092323,-448.55,0.00022684,2]
[390931055,1760223109417,-203.41,0.00022674,10]
[390931056,1760223109509,-169.51,0.00022674,10]
[390931057,1760223109576,-1797.24867384,0.00022684,2]
[390931058,1760223109647,-883.94265232,0.00022684,2]
[390931059,1760223109911,-3891.78734768,0.00022684,2]
[390931060,1760223110081,-500.0,0.00022683,2]
[390931061,1760223110156,-4224.28,0.00022684,2]
[390931062,1760223110355,-500.0,0.00022683,2]
[390931063,1760223110371,-500.0,0.00022683,2]
[390931064,1760223110389,-383.94265232,0.00022683,2]
[390931065,1760223110488,-168.22739485,0.00022683,2]
[390931066,1760223110502,-331.77260515,0.00022683,2]
[390931067,1760223110572,-168.22739485,0.00022683,2]
[390931068,1760223110590,-241.25625268,0.00022683,2]
[390931069,1760223110607,-551.45,0.00022684,2]
[390931070,1760223110624,-3814.79635247,0.00022684,2]
[390931072,1760223115472,150.0,0.00021218,2]
[390931073,1760223117445,-847.55,0.00022674,10]
[390931074,1760223117515,-500.0,0.00022683,2]
[390931075,1760223117591,-500.0,0.00022683,2]
[390931076,1760223117671,-500.0,0.00022683,2]
[390931077,1760223117747,-500.0,0.00022683,2]
[390931078,1760223117822,-329.75185278,0.00022683,2]
[390931079,1760223117898,-500.0,0.00022683,2]
[390931080,1760223117973,-410.01430419,0.00022683,2]
[390931081,1760223118050,-864.44403853,0.00022684,2]
[390931082,1760223118328,-96.489609,0.00022684,2]
[390931083,1760223118398,-4775.73,0.00022684,2]
[390931084,1760223118944,-4775.73,0.00022684,2]
[390931085,1760223119470,-202.060391,0.00022684,2]
[390931086,1760223119542,-448.55,0.00022684,2]
[390931087,1760223119622,-4125.119609,0.00022684,2]
[390931088,1760223119755,-1749.770782,0.00022684,2]
[390931089,1760223119834,-3025.959218,0.00022684,2]
[390931090,1760223119979,-3948.091564,0.00022684,2]
[390931091,1760223120060,-827.638436,0.00022684,2]
[390931092,1760223120139,-3569.003128,0.00022684,2]
[390931093,1760223120276,-1206.726872,0.00022684,2]
[390931094,1760223120352,-4775.73,0.00022684,2]
[390931095,1760223120500,-448.55,0.00022684,2]
[390931096,1760223120572,-4327.18,0.00022684,2]
[390931097,1760223120709,-1345.65,0.00022684,2]
[390931098,1760223120782,-3430.08,0.00022684,2]
[390931099,1760223120901,-3139.85,0.00022684,2]
[390931100,1760223120988,-1635.88,0.00022684,2]
[390931101,1760223121056,-1952.52,0.00022684,2]
[390931102,1760223121175,-2823.21,0.00022684,2]
[390931103,1760223129603,-833.55,0.00022676,10]
[390931104,1760223129688,-300.0,0.00022683,2]
[390931105,1760223129764,-2957.18,0.00022684,2]
[390931106,1760223129967,-1818.55,0.00022684,2]
[390931107,1760223130038,-842.48,0.00022684,2]
[390931108,1760223130118,-842.48,0.00022684,2]
[390931109,1760223130190,-842.48,0.00022684,2]
[390931110,1760223130265,-465.55,0.00022684,2]
[390931111,1760223130535,-376.93,0.00022684,2]
[390931112,1760223130544,-133.59,0.00022684,2]
[390931113,1760223130601,-708.89,0.00022684,2]
[390931114,1760223130610,-133.59,0.00022684,2]
[390931115,1760223130673,-708.89,0.00022684,2]
[390931116,1760223130683,-133.59,0.00022684,2]
[390931117,1760223131549,-708.89,0.00022684,2]
[390931118,1760223131621,-842.48,0.00022684,2]
[390931119,1760223131693,-842.48,0.00022684,2]
[390931120,1760223131766,-842.48,0.00022684,2]
[390931121,1760223131839,-842.48,0.00022684,2]
[390931122,1760223131913,-842.48,0.00022684,2]
[390931123,1760223132432,-157.43,0.00022684,2]
[390931124,1760223133555,-685.05,0.00022684,2]
[390931125,1760223133633,-842.48,0.00022684,2]
[390931126,1760223133702,-842.48,0.00022684,2]
[390931127,1760223133769,-842.48,0.00022684,2]
[390931128,1760223133837,-842.48,0.00022684,2]
[390931129,1760223133903,-842.48,0.00022684,2]
[390931130,1760223134156,-842.48,0.00022684,2]
[390931132,1760223134224,-842.48,0.00022684,2]
[390931134,1760223134291,-842.48,0.00022684,2]
[390931135,1760223134359,-842.48,0.00022684,2]
[390931136,1760223134427,-842.48,0.00022684,2]
[390931137,1760223134494,-732.71396348,0.00022684,2]
[390931141,1760223135134,-109.78207304,0.00022684,2]
[390931142,1760223135144,-205.11,0.00022684,2]
[390931147,1760223135705,-294.89,0.00022684,2]
[390931149,1760223135780,-500.0,0.00022684,2]
[390931151,1760223135853,-500.0,0.00022684,2]
[390931152,1760223135922,-500.0,0.00022684,2]
[390931154,1760223135996,-500.0,0.00022684,2]
[390931156,1760223136070,-500.0,0.00022684,2]
[390931157,1760223136142,-500.0,0.00022684,2]
[390931158,1760223136210,-500.0,0.00022684,2]
[390931160,1760223136279,-500.0,0.00022684,2]
[390931161,1760223136349,-500.0,0.00022684,2]
[390931164,1760223137019,-410.23,0.00022684,2]
[390931189,1760223170399,451.17818554,0.00022586,2]
[390931193,1760223187167,150.0,0.00018864,2]
[390931194,1760223187630,150.0,0.00020579,2]
[390931195,1760223188045,150.0,0.00022294,2]
[390931201,1760223196004,9098.83181446,0.00022584,2]
[390931202,1760223196063,10000.01,0.00022584,2]
[390931203,1760223196123,10000.01,0.00022584,2]
[390931204,1760223196194,10000.01,0.00022584,2]
[390931205,1760223196252,10000.01,0.00022584,2]
[390931206,1760223196307,10000.01,0.00022584,2]
[390931207,1760223196363,10000.01,0.00022584,2]
[390931208,1760223196415,10000.01,0.00022584,2]
[390931209,1760223196470,10000.01,0.00022584,2]
[390931210,1760223196523,10000.01,0.00022584,2]
[390931225,1760223229982,-10000.01,0.00022584,2]
[390931226,1760223230155,-10000.01,0.00022584,2]
[390931227,1760223230387,-10000.01,0.00022584,2]
[390931228,1760223230572,-10000.01,0.00022584,2]
[390931229,1760223230769,-10000.01,0.00022584,2]
[390931230,1760223230983,-10000.01,0.00022584,2]
[390931231,1760223231220,-10000.01,0.00022584,2]
[390931232,1760223231477,-10000.01,0.00022584,2]
[390931233,1760223231711,-10000.01,0.00022584,2]
[390931234,1760223231903,-10000.01,0.00022584,2]
[390931247,1760223256644,150.0,0.00018893,2]
[390931250,1760223257065,150.0,0.0002061,2]
[390931254,1760223281238,-5000.0,0.00022105,2]
[390931255,1760223281308,-150.0,0.00022328,2]
[390931256,1760223281342,-150.0,0.00022583,2]
[390931257,1760223281376,-516.66172514,0.00022583,2]
[390931258,1760223281407,-326.59919767,0.00022583,2]
[390931259,1760223281441,-363.67292317,0.00022583,2]
[390931260,1760223281676,-0.01,0.00022584,2]
[390931261,1760223281695,-6986.14230804,0.00022584,2]
[390931262,1760223281743,-10000.01,0.00022584,2]
[390931263,1760223281761,-10000.01,0.00022584,2]
[390931264,1760223281846,-10000.01,0.00022584,2]
[390931265,1760223282016,-10000.01,0.00022584,2]
[390931266,1760223282163,-10000.01,0.00022584,2]
[390931267,1760223282301,-10000.01,0.00022584,2]
[390931268,1760223282422,-10000.01,0.00022584,2]
[390931269,1760223282549,-10000.01,0.00022584,2]
[390931270,1760223299371,-265.30378952,0.00022358,2]
[390931271,1760223302029,-287.64391034,0.00022358,2]
[390931292,1760223311834,168.878104,0.00010842,2]
[390931295,1760223317235,-4447.05230014,0.00022358,2]
[390931296,1760223317289,-1105.90539972,0.00022583,2]
[390931297,1760223317362,-94.09460028,0.00022583,2]
[390931298,1760223317430,-400.00784054,0.00022583,2]
[390931299,1760223317440,-500.0,0.00022583,2]
[390931300,1760223317450,-500.0,0.00022583,2]
[390931301,1760223317459,-500.0,0.00022583,2]
[390931302,1760223317468,-7911.8129589,0.00022584,2]
[390931303,1760223317544,-500.0,0.00022583,2]
[390931304,1760223317582,-500.0,0.00022583,2]
[390931305,1760223317618,-500.0,0.00022583,2]
[390931306,1760223317652,-333.37583813,0.00022583,2]
[390931307,1760223317685,-427.24224603,0.00022583,2]
[390931308,1760223317723,-500.0,0.00022583,2]
[390931309,1760223317890,-500.0,0.00022583,2]
[390931310,1760223317931,-500.0,0.00022583,2]
[390931311,1760223318099,-347.41443919,0.00022583,2]
[390931312,1760223318134,-500.0,0.00022583,2]
[390931313,1760223318172,-500.0,0.00022583,2]
[390931314,1760223318207,-250.0,0.00022583,2]
[390931315,1760223318245,-500.0,0.00022583,2]
[390931316,1760223318281,-500.0,0.00022583,2]
[390931317,1760223318396,-500.0,0.00022583,2]
[390931318,1760223318434,-500.0,0.00022583,2]
[390931319,1760223318575,-500.0,0.00022583,2]
[390931320,1760223318707,-500.0,0.00022584,2]
[390931321,1760223318731,-500.0,0.00022584,2]
[390931322,1760223318750,-4805.18112162,0.00022584,2]
[390931323,1760223318785,160.0,0.0002,3]
[390931324,1760223318812,-500.0,0.00022584,2]
[390931325,1760223318831,-500.0,0.00022584,2]
[390931326,1760223318850,-8000.01,0.00022584,2]
[390931327,1760223318874,-500.0,0.00022584,2]
[390931328,1760223318892,-9000.01,0.00022584,2]
[390931329,1760223318911,-10000.01,0.00022584,2]
[390931330,1760223318933,-10000.01,0.00022584,2]
[390931331,1760223319497,-10000.01,0.00022584,2]
[390931332,1760223319732,-10000.01,0.00022584,2]
[390931333,1760223319946,-10000.01,0.00022584,2]
[390931334,1760223320080,-1697.68179698,0.00022584,2]
[390931335,1760223320120,-150.0,0.00022584,2]
[390931336,1760223328169,159.47,0.00018903,2]
[390931337,1760223328718,318.94,0.00020622,2]
[390931338,1760223329129,478.41,0.0002234,2]
[390931340,1760223339225,5000.0,0.00022584,2]
[390931344,1760223341677,537.81,0.00022583,2]
[390931358,1760223361551,5000.0,0.00022588,2]
[390931367,1760223379543,5000.01,0.00022484,2]
[390931368,1760223379570,10000.01,0.00022484,2]
[390931369,1760223379598,10000.01,0.00022484,2]
[390931370,1760223379627,10000.01,0.00022484,2]
[390931371,1760223379655,10000.01,0.00022484,2]
[390931372,1760223379681,10000.01,0.00022484,2]
[390931373,1760223379709,10000.01,0.00022484,2]
[390931374,1760223379736,10000.01,0.00022484,2]
[390931375,1760223379803,10000.01,0.00022484,2]
[390931376,1760223379862,10000.01,0.00022484,2]
[390931377,1760223379925,3505.38,0.00022484,2]
[390931378,1760223388226,-246.53860285,0.00022259,2]
[390931379,1760223390827,-300.0,0.00022259,2]
[390931380,1760223392308,-300.0,0.00022259,2]
[390931381,1760223393779,-310.2523959,0.00022259,2]
[390931382,1760223396220,-185.46098274,0.00022259,2]
[390931383,1760223407274,185.79,0.0001932,2]
[390931384,1760223418220,-174.29460539,0.00021076,2]
[390931385,1760223448766,-197.28539461,0.00021076,2]
[390931386,1760223448843,-3657.74801851,0.00022259,2]
[390931387,1760223448919,-300.0,0.00022483,2]
[390931388,1760223448985,-489.94317376,0.00022483,2]
[390931389,1760223449247,-710.05682624,0.00022483,2]
[390931390,1760223449321,-280.35648271,0.00022483,2]
[390931391,1760223449390,-250.0,0.00022483,2]
[390931392,1760223449461,-615.38332823,0.00022483,2]
[390931393,1760223453496,-6998.47355188,0.00022484,2]
[390931394,1760223453696,-10000.01,0.00022484,2]
[390931395,1760223454053,-10000.01,0.00022484,2]
[390931396,1760223454152,-484.76653678,0.00022483,2]
[390931397,1760223454230,-319.82007156,0.00022483,2]
[390931398,1760223454444,-8390.83678332,0.00022484,2]
[390931399,1760223454519,-10000.01,0.00022484,2]
[390931400,1760223454687,-10000.01,0.00022484,2]
[390931401,1760223454896,-10000.01,0.00022484,2]
[390931402,1760223456811,-500.0,0.00022483,2]
[390931403,1760223456888,-500.0,0.00022483,2]
[390931404,1760223456975,-500.0,0.00022483,2]
[390931405,1760223457181,-500.0,0.00022483,2]
[390931406,1760223457273,-500.0,0.00022483,2]
[390931407,1760223457571,-500.0,0.00022483,2]
[390931408,1760223457796,-500.0,0.00022483,2]
[390931409,1760223457806,-4000.01,0.00022484,2]
[390931410,1760223457896,-500.0,0.00022483,2]
[390931411,1760223457959,-9000.01,0.00022484,2]
[390931412,1760223458038,-500.0,0.00022483,2]
[390931413,1760223458049,-9500.01,0.00022484,2]
[390931414,1760223460807,-500.0,0.00022483,2]
[390931415,1760223460879,-500.0,0.00022483,2]
[390931416,1760223460962,-500.0,0.00022483,2]
[390931417,1760223461036,-500.0,0.00022483,2]
[390931418,1760223461106,-500.0,0.00022483,2]
[390931419,1760223461180,-500.0,0.00022483,2]
[390931420,1760223461254,-500.0,0.00022483,2]
[390931421,1760223461325,-500.0,0.00022483,2]
[390931422,1760223461599,-500.0,0.00022483,2]
[390931423,1760223461871,-500.0,0.00022483,2]
[390931424,1760223461942,-500.0,0.00022483,2]
[390931425,1760223462165,-500.0,0.00022483,2]
[390931426,1760223462176,-0.01,0.00022483,2]
[390931427,1760223462256,-212.89044116,0.00022483,2]
[390931428,1760223462346,-287.10955884,0.00022484,2]
[390931429,1760223462418,-9000.01,0.00022484,2]
[390931430,1760223462497,-500.0,0.00022484,2]
[390931431,1760223462569,-500.0,0.00022484,2]
[390931432,1760223462630,-8000.01,0.00022484,2]
[390931433,1760223462704,-212.89044116,0.00022484,2]
[390931434,1760223462770,-9574.22911768,0.00022484,2]
[390931435,1760223462837,-10000.01,0.00022484,2]
[390931436,1760223462918,-10000.01,0.00022484,2]
[390931437,1760223463094,-10000.01,0.00022484,2]
[390931438,1760223463174,-10000.01,0.00022484,2]
[390931439,1760223463277,-10000.01,0.00022484,2]
[390931440,1760223463503,-10000.01,0.00022484,2]
[390931441,1760223463728,-10000.01,0.00022484,2]
[390931442,1760223463947,-10000.01,0.00022484,2]
[390931443,1760223464150,-10000.01,0.00022484,2]
[390931444,1760223464367,-10000.01,0.00022484,2]
[390931445,1760223464573,-10000.01,0.00022484,2]
[390931446,1760223464776,-10000.01,0.00022484,2]
[390931452,1760223487523,190.55,0.00019339,2]
[390931453,1760223493871,-239.16009592,0.00021097,2]
[390931457,1760223553121,-141.94990408,0.00021097,2]
[390931458,1760223553197,-4716.11019184,0.00022259,2]
[390931459,1760223553302,-283.88980816,0.00022259,2]
[390931460,1760223553375,-300.0,0.00022483,2]
[390931461,1760223553494,-9400.01,0.00022484,2]
[390931462,1760223553570,-10000.01,0.00022484,2]
[390931463,1760223553770,-10000.01,0.00022484,2]
[390931464,1760223553960,-3869.27945288,0.00022484,2]
[390931465,1760223554027,-2261.45109424,0.00022484,2]
[390931466,1760223554163,-374.34,0.00022573,10]
[390931467,1760223554227,-203.5845,0.00022577,2]
[390931468,1760223554312,-500.0,0.00022577,2]
[390931469,1760223554377,-500.0,0.00022577,2]
[390931470,1760223554446,-500.0,0.00022577,2]
[390931471,1760223554508,-500.0,0.00022577,2]
[390931472,1760223554568,-500.0,0.00022577,2]
[390931473,1760223554630,-186.32406985,0.00022577,2]
[390931474,1760223554694,-500.0,0.00022577,2]
[390931475,1760223554757,-500.0,0.00022577,2]
[390931476,1760223554818,-500.0,0.00022577,2]
[390931477,1760223555080,-500.0,0.00022577,2]
[390931478,1760223555144,-643.28998635,0.00022577,2]
[390931479,1760223555214,-500.0,0.00022577,2]
[390931480,1760223555868,-500.0,0.00022578,2]
[390931481,1760223555924,-6713.4300273,0.00022578,2]
[390931482,1760223556002,-9451.9571399,0.00022578,2]
[390931483,1760223556012,-300.78545702,0.00022582,2]
[390931484,1760223556022,-247.26740308,0.00022583,2]
[390931485,1760223556085,-252.73259692,0.00022583,2]
[390931486,1760223556095,-500.0,0.00022583,2]
[390931487,1760223556104,-500.0,0.00022583,2]
[390931488,1760223556113,-500.0,0.00022583,2]
[390931489,1760223556123,-500.0,0.00022583,2]
[390931490,1760223556133,-500.0,0.00022583,2]
[390931491,1760223556142,-500.0,0.00022583,2]
[390931492,1760223556152,-500.0,0.00022583,2]
[390931493,1760223556164,-500.0,0.00022583,2]
[390931494,1760223556173,-500.0,0.00022583,2]
[390931495,1760223556182,-500.0,0.00022583,2]
[390931496,1760223556191,-500.0,0.00022583,2]
[390931497,1760223556202,-499.76670998,0.00022583,2]
[390931498,1760223556211,-500.0,0.00022583,2]
[390931499,1760223556221,-500.0,0.00022583,2]
[390931500,1760223556231,-2747.5106931,0.00022583,2]
[390931501,1760223556285,-271.8193069,0.00022583,2]
[390931502,1760223556295,-3019.33,0.00022583,2]
[390931503,1760223556304,-3019.33,0.00022583,2]
[390931504,1760223556313,-3019.33,0.00022583,2]
[390931505,1760223556322,-670.2006931,0.00022583,2]
[390931506,1760223557079,-2349.1293069,0.00022583,2]
[390931507,1760223557146,-2282.4213862,0.00022583,2]
[390931508,1760223557258,-736.9086138,0.00022583,2]
[390931509,1760223568180,183.28,0.00019142,2]
[390931510,1760223568497,366.55,0.00020883,2]
[390931511,1760223597332,-500.0,0.00022573,2]
[390931512,1760223597395,-500.0,0.00022577,2]
[390931513,1760223597456,-500.0,0.00022577,2]
[390931514,1760223597524,-500.0,0.00022577,2]
[390931515,1760223597591,-434.92816031,0.00022577,2]
[390931516,1760223597649,-500.0,0.00022577,2]
[390931517,1760223597712,-500.0,0.00022577,2]
[390931518,1760223597772,-504.38265207,0.00022577,2]
[390931519,1760223598102,-410.17272698,0.00022577,2]
[390931520,1760223598176,-389.53066917,0.00022577,2]
[390931521,1760223598239,-3019.33,0.00022583,2]
[390931522,1760223598465,-783.1098283,0.00022539,2]
[390931523,1760223598524,-3019.33,0.00022583,2]
[390931524,1760223598925,-3019.33,0.00022583,2]
[390931525,1760223598985,-942.02,0.00022583,2]
[390931526,1760223599154,-2077.31,0.00022583,2]
[390931527,1760223599215,-2826.06,0.00022583,2]
[390931528,1760223599382,-193.27,0.00022583,2]
[390931529,1760223599440,-3019.33,0.00022583,2]
[390931530,1760223599498,-555.48,0.00022583,2]
[390931531,1760223599762,-2463.85,0.00022583,2]
[390931532,1760223599831,-2052.98,0.00022583,2]
[390931533,1760223599913,-966.35,0.00022583,2]
[390931534,1760223599980,-3019.33,0.00022583,2]
[390931535,1760223600421,-91.05192634,0.00022583,2]
[390931536,1760223600478,-2928.27807366,0.00022583,2]
[390931537,1760223600487,-91.05192634,0.00022583,2]
[390931538,1760223600546,-2463.85,0.00022583,2]
[390931539,1760223600595,-464.42807366,0.00022583,2]
[390931540,1760223600604,-2554.90192634,0.00022583,2]
[390931541,1760223600653,-464.42807366,0.00022583,2]
[390931542,1760223600662,-501.92192634,0.00022583,2]
[390931543,1760223600717,-2517.40807366,0.00022583,2]
[390931544,1760223600727,-501.92192634,0.00022583,2]
[390931545,1760223600782,-2028.65,0.00022583,2]
[390931547,1760223618958,300.0,0.000209,2]
[390931548,1760223630509,300.0,0.000209,2]
[390931549,1760223634475,-500.0,0.00022483,2]
[390931550,1760223634552,-500.0,0.00022483,2]
[390931551,1760223634622,-500.0,0.00022483,2]
[390931552,1760223634835,-500.0,0.00022483,2]
[390931553,1760223634907,-500.0,0.00022483,2]
[390931554,1760223634994,-500.0,0.00022483,2]
[390931555,1760223635070,-500.0,0.00022483,2]
[390931556,1760223635142,-493.27257328,0.00022483,2]
[390931557,1760223635218,-500.0,0.00022577,2]
[390931558,1760223635289,-500.0,0.00022577,2]
[390931559,1760223635577,-500.0,0.00022577,2]
[390931560,1760223635654,-500.0,0.00022577,2]
[390931561,1760223635736,-500.0,0.00022577,2]
[390931562,1760223635810,-500.0,0.00022577,2]
[390931563,1760223635879,-500.0,0.00022577,2]
[390931564,1760223635952,-500.0,0.00022577,2]
[390931565,1760223636026,-500.0,0.00022577,2]
[390931566,1760223636098,-500.0,0.00022577,2]
[390931567,1760223636173,-500.0,0.00022577,2]
[390931568,1760223636248,-500.0,0.00022577,2]
[390931569,1760223636418,-415.69349729,0.00022577,2]
[390931570,1760223636488,-500.0,0.00022577,2]
[390931571,1760223636562,-500.0,0.00022577,2]
[390931572,1760223636636,-500.0,0.00022577,2]
[390931573,1760223636704,-404.08102575,0.00022577,2]
[390931574,1760223636772,-500.0,0.00022577,2]
[390931575,1760223636841,-500.0,0.00022577,2]
[390931576,1760223636912,-500.0,0.00022577,2]
[390931577,1760223636985,-283.95866995,0.00022577,2]
[390931578,1760223637053,-200.0,0.00022582,2]
[390931579,1760223637122,-300.0,0.00022582,2]
[390931580,1760223637191,-300.0,0.00022582,2]
[390931581,1760223637484,-500.0,0.00022483,2]
[390931582,1760223637553,-240.0,0.00022582,2]
[390931583,1760223637623,-1200.0,0.00022582,2]
[390931584,1760223637691,-500.0,0.00022582,2]
[390931585,1760223637759,-500.0,0.00022582,2]
[390931586,1760223637827,-500.0,0.00022582,2]
[390931587,1760223637901,-500.0,0.00022582,2]
[390931588,1760223637975,-500.0,0.00022582,2]
[390931589,1760223638046,-500.0,0.00022582,2]
[390931590,1760223638195,200.0,0.00027,120]
[390931591,1760223638390,-500.0,0.00022483,2]
[390931592,1760223638458,-500.0,0.00022582,2]
[390931593,1760223638522,-500.0,0.00022582,2]
[390931594,1760223638586,-500.0,0.00022582,2]
[390931595,1760223638658,-488.75807366,0.00022583,2]
[390931596,1760223638731,-2003.16385268,0.00022583,2]
[390931597,1760223639038,-500.0,0.00022483,2]
[390931598,1760223639119,-1016.16614732,0.00022583,2]
[390931599,1760223639197,-3019.33,0.00022583,2]
[390931600,1760223639641,-500.0,0.00022483,2]
[390931601,1760223639723,-3019.33,0.00022583,2]
[390931602,1760223640345,-500.0,0.00022483,2]
[390931603,1760223640416,-500.0,0.00022483,2]
[390931604,1760223640492,-3019.4015896,0.00022583,2]
[390931605,1760223640574,-500.0,0.00022583,2]
[390931606,1760223640659,-461.2068208,0.00022583,2]
[390931607,1760223640948,-500.0,0.00022483,2]
[390931608,1760223641020,-38.7931792,0.00022583,2]
[390931609,1760223641093,-500.0,0.00022583,2]
[390931610,1760223641166,-375.3,0.00022583,2]
[390931611,1760223641243,-500.0,0.00022583,2]
[390931612,1760223641318,-500.0,0.00022583,2]
[390931613,1760223641391,-500.0,0.00022583,2]
[390931614,1760223641461,-500.0,0.00022583,2]
[390931615,1760223641531,-173.56,0.00022583,2]
[390931616,1760223641603,-500.0,0.00022583,2]
[390931617,1760223641674,-500.0,0.00022583,2]
[390931618,1760223641745,-324.7036416,0.00022583,2]
[390931619,1760223642035,-500.0,0.00022483,2]
[390931620,1760223642109,-500.0,0.00022582,2]
[390931621,1760223642183,-175.2963584,0.00022583,2]
[390931622,1760223642259,-500.0,0.00022583,2]
[390931623,1760223642329,-500.0,0.00022583,2]
[390931624,1760223642397,-500.0,0.00022583,2]
[390931625,1760223642469,-523.85,0.00022583,2]
[390931626,1760223642775,-5000.0,0.00022583,2]
[390931627,1760223643284,-204.7419595,0.00022483,2]
[390931628,1760223643354,-500.0,0.00022583,2]
[390931629,1760223643424,-500.0,0.00022583,2]
[390931630,1760223643492,-500.0,0.00022583,2]
[390931631,1760223643557,-500.0,0.00022583,2]
[390931632,1760223643630,-500.0,0.00022583,2]
[390931633,1760223643702,-372.86,0.00022583,2]
[390931634,1760223643778,-500.0,0.00022583,2]
[390931635,1760223643846,-500.0,0.00022583,2]
[390931636,1760223643919,-500.0,0.00022583,2]
[390931637,1760223643989,-344.806081,0.00022583,2]
[390931638,1760223644144,-155.193919,0.00022583,2]
[390931639,1760223644214,-500.0,0.00022583,2]
[390931640,1760223644284,-500.0,0.00022583,2]
[390931641,1760223644354,-500.0,0.00022583,2]
[390931642,1760223644425,-500.0,0.00022583,2]
[390931643,1760223644494,-500.0,0.00022583,2]
[390931644,1760223644566,-500.0,0.00022583,2]
[390931645,1760223644638,-500.0,0.00022583,2]
[390931646,1760223644712,-500.0,0.00022583,2]
[390931647,1760223644787,-231.44,0.00022583,2]
[390931648,1760223644859,-500.0,0.00022583,2]
[390931650,1760223648873,-86.94055425,0.00022582,2]
[390931651,1760223648935,-413.05944575,0.00022582,2]
[390931652,1760223648945,-86.94055425,0.00022582,2]
[390931653,1760223649001,-413.05944575,0.00022582,2]
[390931654,1760223649013,-86.94055425,0.00022582,2]
[390931655,1760223649071,-413.05944575,0.00022582,2]
[390931656,1760223649081,-86.94055425,0.00022582,2]
[390931657,1760223649134,-413.05944575,0.00022582,2]
[390931658,1760223649143,-86.94055425,0.00022582,2]
[390931659,1760223649198,-372.86,0.00022582,2]
[390931660,1760223649256,-40.19944575,0.00022582,2]
[390931661,1760223649268,-459.80055425,0.00022582,2]
[390931662,1760223649327,-82.77944575,0.00022582,2]
[390931663,1760223649336,-417.22055425,0.00022583,2]
[390931664,1760223649388,-82.77944575,0.00022583,2]
[390931665,1760223649398,-417.22055425,0.00022583,2]
[390931666,1760223649561,-31.30077395,0.00022583,2]
[390931667,1760223649571,-468.69922605,0.00022583,2]
[390931668,1760223649630,-155.193919,0.00022583,2]
[390931669,1760223649696,-500.0,0.00022583,2]
[390931670,1760223649761,-500.0,0.00022583,2]
[390931671,1760223649822,-500.0,0.00022583,2]